[Event "FIDE World Cup G10-A 2024"]
[Site "Batumi"]
[Date "2024.06.29"]
[Round "7.8"]
[White "Asatiani, Natali"]
[Black "Lukas, Olivia"]
[Result "1-0"]
[ECO "A52"]
[WhiteElo "1505"]
[BlackElo "1540"]
[Annotator "NA RC"]
[PlyCount "189"]
[EventDate "2024.06.23"]
[EventType "swiss"]
[EventCountry "GEO"]
[SourceTitle "playchess.com"]
[Source "ChessBase"]
[SourceQuality "1"]
[TimeControl "5400+30"]

1. d4 {[%emt 0:01:00]} Nf6 {[%emt 0:00:06]} 2. c4 {[%emt 0:00:07]} e5 {[%emt 0:00:04]} 3. dxe5 {[%emt 0:02:34]} Ng4 {[%emt 0:00:17]} 4. Nf3 {[%emt 0:03:43]} Bc5 {[%emt 0:00:24]} 5. e3 {[%emt 0:01:16]} Nc6 {[%emt 0:00:31]} 6. Nc3 {[%emt 0:01:10]} Ncxe5 {[%emt 0:03:55]} 7. Nxe5 {[%emt 0:02:43]} Nxe5 {[%emt 0:01:24]} 8. b3 {[%emt 0:06:24]} O-O {[%emt 0:02:55]} 9. g3 {[%emt 0:02:17]} Qf6 {[%emt 0:04:09]} 10. Bb2 {[%emt 0:11:10]} Bb4 {[%emt 0:04:56]} 11. Rc1 {[%emt 0:05:10]} Qc6 {[%emt 0:10:44]} 12. Qd5 {[%emt 0:06:05]} Qf6 {[%emt 0:08:45]} 13. Bg2 {[%emt 0:02:30]} d6 {[%emt 0:04:51]} 14. a3 {[%emt 0:06:46]} Be6 {[%emt 0:10:49]} 15. Qd1 {[%emt 0:08:05]} Bg4 {[%emt 0:07:48]} 16. Qc2 {[%emt 0:06:45]} Nf3+ {[%emt 0:07:27]} 17. Kf1 {[%emt 0:02:02]} Bxc3 {[%emt 0:13:37]} 18. Qxc3 {[%emt 0:05:23]} Ne5 {[%emt 0:10:21]} 19. h3 {[%emt 0:09:34]} Bf3 {[%emt 0:02:56]} 20. Bxf3 {[%emt 0:02:26]} Qxf3 {[%emt 0:00:44]} 21. Rg1 {[%emt 0:03:49]} f6 {[%emt 0:02:30]} 22. Qd2 {[%emt 0:01:28]} Qf5 {[%emt 0:01:24]} 23. Qd5+ {[%emt 0:03:33]} Kh8 {[%emt 0:00:31]} 24. g4 {[%emt 0:01:04]} Qg5 {[%emt 0:00:45]} 25. f4 {[%emt 0:02:02]} Qh4 {[%emt 0:00:30]} 26. Qg2 {[%emt 0:01:19]} Nd3 {[%emt 0:00:33]} 27. Rd1 {[%emt 0:01:16]} Nxb2 {[%emt 0:00:08]} 28. Qxb2 {[%emt 0:00:01]} Qxh3+ {[%emt 0:00:09]} 29. Kf2 {[%emt 0:00:35]} Rfe8 {[%emt 0:00:19]} 30. Rd3 {[%emt 0:00:33]} Re4 {[%emt 0:00:15]} 31. Rg3 {[%emt 0:00:27]} Qh2+ {[%emt 0:00:14]} 32. Rg2 {[%emt 0:00:02]} Qh4+ {[%emt 0:00:13]} 33. Rg3 {[%emt 0:00:23]} Rae8 {[%emt 0:00:09]} 34. Qd2 {[%emt 0:00:14]} h6 {[%emt 0:00:37]} 35. Kf3 {[%emt 0:01:08]} Qh1+ {[%emt 0:00:31]} 36. Rg2 {[%emt 0:00:26]} Qa1 {[%emt 0:00:31]} 37. a4 {[%emt 0:00:43]} Qf1+ {[%emt 0:00:15]} 38. Kg3 {[%emt 0:00:36]} Qa1 {[%emt 0:00:43]} 39. Kf3 {[%emt 0:00:34]} Qa3 {[%emt 0:00:09]} 40. Rg1 {[%emt 0:00:49]} Qc5 {[%emt 0:00:36]} 41. Re1 {[%emt 0:00:27]} Qc6 {[%emt 0:00:18]} 42. Kf2 {[%emt 0:00:22]} Qd7 {[%emt 0:00:21]} 43. Kf3 {[%emt 0:00:19]} g5 {[%emt 0:00:42]} 44. f5 {[%emt 0:00:59]} Qe7 {[%emt 0:00:35]} 45. Kg3 {[%emt 0:01:31]} Qe5+ {[%emt 0:00:10]} 46. Kf3 {[%emt 0:01:01]} h5 {[%emt 0:00:58]} 47. Rh1 {[%emt 0:00:34]} h4 {[%emt 0:00:09]} 48. Rh3 {[%emt 0:00:23]} Qe7 {[%emt 0:00:19]} 49. Rc3 {[%emt 0:00:34]} b6 {[%emt 0:00:16]} 50. Rd3 {[%emt 0:00:16]} Qe5 {[%emt 0:00:34]} 51. Rc3 {[%emt 0:00:35]} a5 {[%emt 0:00:17]} 52. Rd3 {[%emt 0:00:15]} Qa1 {[%emt 0:00:23]} 53. Kf2 {[%emt 0:00:59]} Rxg4 {[%emt 0:00:28]} 54. Qd1 {[%emt 0:00:30]} Qxd1 {[%emt 0:00:24]} 55. Rxd1 {[%emt 0:00:01]} Rge4 {[%emt 0:00:18]} 56. Rd3 {[%emt 0:01:00]} R8e5 {[%emt 0:00:21]} 57. Kf3 {[%emt 0:00:26]} g4+ {[%emt 0:00:11]} 58. Kg2 {[%emt 0:00:03]} gxh3+ {[%emt 0:00:06]} 59. Kxh3 {[%emt 0:00:03]} Rxe3+ {[%emt 0:00:12]} 60. Rxe3 {[%emt 0:00:01]} Rxe3+ {[%emt 0:00:08]} 61. Kxh4 {[%emt 0:00:01]} Rg3 {[%emt 0:00:10]} 62. Kxg3 {[%emt 0:00:08]} Kg7 {[%emt 0:00:16]} 63. Kg4 {[%emt 0:00:51]} c6 {[%emt 0:00:20]} 64. Kf4 {[%emt 0:00:08]} Kf7 {[%emt 0:00:24]} 65. Ke4 {[%emt 0:00:15]} Ke7 {[%emt 0:00:22]} 66. Kd4 {[%emt 0:00:28]} d5 {[%emt 0:00:43]} 67. cxd5 {[%emt 0:01:11]} cxd5 {[%emt 0:01:15]} 68. Kxd5 {[%emt 0:00:03]} Kd7 {[%emt 0:00:10]} 69. Kc4 {[%emt 0:00:56]} Kc6 {[%emt 0:01:25]} 70. Kd4 {[%emt 0:00:27]} Kd6 {[%emt 0:00:29]} 71. Kc4 {[%emt 0:00:24]} Ke5 {[%emt 0:02:10]} 72. Kb5 {[%emt 0:00:09]} Kxf5 {[%emt 0:00:06]} 73. Kxb6 {[%emt 0:00:04]} Ke5 {[%emt 0:00:07]} 74. Kxa5 {[%emt 0:00:05]} f5 {[%emt 0:01:20]} 75. Kb4 {[%emt 0:02:50]} f4 {[%emt 0:00:52]} 76. Kc3 {[%emt 0:00:03]} Kd5 {[%emt 0:00:31]} 77. Kd3 {[%emt 0:00:06]} Kc5 {[%emt 0:00:05]} 78. Ke4 {[%emt 0:00:13]} Kb4 {[%emt 0:00:10]} 79. Kxf4 {[%emt 0:00:07]} Kxb3 {[%emt 0:00:04]} 80. a5 {[%emt 0:00:12]} Kc4 {[%emt 0:00:05]} 81. a6 {[%emt 0:00:04]} Kd4 {[%emt 0:00:03]} 82. a7 {[%emt 0:00:05]} Kd5 {[%emt 0:00:03]} 83. a8=Q+ {[%emt 0:00:14]} Kd4 {[%emt 0:00:02]} 84. Qe4+ {[%emt 0:00:04]} Kc5 {[%emt 0:00:04]} 85. Qd3 {[%emt 0:00:05]} Kc6 {[%emt 0:00:03]} 86. Qd4 {[%emt 0:00:06]} Kc7 {[%emt 0:00:05]} 87. Qd5 {[%emt 0:00:05]} Kb6 {[%emt 0:00:03]} 88. Qc4 {[%emt 0:00:04]} Ka5 {[%emt 0:00:05]} 89. Qb3 {[%emt 0:00:16]} Ka6 {[%emt 0:00:03]} 90. Qb4 {[%emt 0:00:03]} Ka7 {[%emt 0:00:03]} 91. Qb5 {[%emt 0:00:04]} Ka8 {[%emt 0:00:02]} 92. Ke5 {[%emt 0:00:07]} Ka7 {[%emt 0:00:04]} 93. Kd6 {[%emt 0:00:04]} Ka8 {[%emt 0:00:03]} 94. Kc7 {[%emt 0:00:05]} Ka7 {[%emt 0:00:03]} 95. Qb7# {[%emt 0:00:08]} 1-0

[Event "FIDE World Cup G10-A 2024"]
[Site "Batumi"]
[Date "2024.06.29"]
[Round "7.11"]
[White "Shubitidze, Barbare"]
[Black "Khelfallah, Ikhlas"]
[Result "0-1"]
[ECO "C53"]
[WhiteElo "1534"]
[BlackElo "1456"]
[Annotator "NA RC"]
[PlyCount "36"]
[EventDate "2024.06.23"]
[EventType "swiss"]
[EventCountry "GEO"]
[SourceTitle "playchess.com"]
[Source "ChessBase"]
[SourceQuality "1"]
[TimeControl "5400+30"]

1. e4 {[%emt 0:00:03]} e5 {[%emt 0:00:14]} 2. Nf3 {[%emt 0:00:09]} Nc6 {[%emt 0:00:37]} 3. Bc4 {[%emt 0:00:09]} Bc5 {[%emt 0:00:32]} 4. c3 {[%emt 0:00:04]} Qe7 {[%emt 0:02:04]} 5. d4 {[%emt 0:04:56]} Bb6 {[%emt 0:02:09]} 6. d5 {[%emt 0:02:52]} Nd8 {[%emt 0:01:16]} 7. O-O {[%emt 0:01:28]} Nf6 {[%emt 0:05:06]} 8. b3 {[%emt 0:02:22]} O-O {[%emt 0:01:32]} 9. Ba3 {[%emt 0:00:07]} d6 {[%emt 0:00:22]} 10. h3 {[%emt 0:07:35]} Nxe4 {[%emt 0:08:14]} 11. Qe2 {[%emt 0:02:15]} Ng3 {[%emt 0:00:48]} 12. Qe1 {[%emt 0:01:23]} Nxf1 {[%emt 0:00:33]} 13. Kxf1 {[%emt 0:02:46]} Re8 {[%emt 0:05:40]} 14. Nbd2 {[%emt 0:12:34]} e4 {[%emt 0:04:42]} 15. Nh2 {[%emt 0:09:55]} Qe5 {[%emt 0:03:51]} 16. g3 {[%emt 0:01:50]} Bxh3+ {[%emt 0:00:45]} 17. Kg1 {[%emt 0:00:26]} Qxg3+ {[%emt 0:00:18]} 18. Kh1 {[%emt 0:00:11]} Qg2# {[%emt 0:00:35]} 0-1